[Event "III Menorca Open-A 2024"]
[Site "Ciutadella Menorca"]
[Date "2024.04.03"]
[Round "3.12"]
[White "Levin, Guy"]
[Black "Sosa, Tomas"]
[Result "1/2-1/2"]
[ECO "A21"]
[WhiteElo "2451"]
[BlackElo "2562"]
[Annotator "TA"]
[PlyCount "38"]
[EventDate "2024.04.02"]
[EventType "swiss"]
[EventCountry "ESP"]
[SourceTitle "playchess.com"]
[Source "ChessBase"]
[SourceQuality "1"]
[TimeControl "5400+30"]

{[%evp 10,38,18,12,25,14,32,36,50,37,25,19,25,28,23,8,8,7,22,0,10,10,25,0,0,0,24,18,39,17,51]} 1. c4 {[%emt 0:01:58]} e5 {[%emt 0:00:24]} 2. d3 {[%emt 0:00:07]} f5 {[%emt 0:01:08]} 3. Nc3 {[%emt 0:00:18]} Nf6 {[%emt 0:00:40]} 4. g3 {[%emt 0:00:09]} d6 {[%emt 0:02:07]} 5. Bg2 {[%emt 0:00:08]} Be7 {[%emt 0:00:04]} 6. f4 {[%emt 0:00:13]} exf4 {[%emt 0:02:21]} 7. Bxf4 {[%emt 0:00:13]} Nh5 {[%emt 0:04:22]} 8. Bd2 {[%emt 0:00:11]} O-O {[%emt 0:00:37] White is slightly better.} 9. Nf3 {[%emt 0:00:15]} c6 {[%emt 0:02:21]} 10. e3 {[%emt 0:09:31]} Qe8 {[%emt 0:01:26]} 11. O-O {[%emt 0:04:52]} Nd7 {[%emt 0:03:43]} 12. Nd4 {[%emt 0:04:28][%cal Od4e6] [#] And now Ne6! would win.} Ne5 {[%emt 0:00:55]} 13. Qe2 {[%emt 0:00:17]} Ng4 {[%emt 0:05:33]} 14. Bf3 {[%emt 0:14:58]} Qg6 {[%emt 0:10:02]} 15. Bxg4 {[%emt 0:00:15]} fxg4 {[%emt 0:00:24]} 16. Rxf8+ {[%emt 0:00:24]} Bxf8 {[%emt 0:00:06]} 17. Rf1 {[%emt 0:03:11]} Bd7 {[%emt 0:02:39]} 18. e4 {[%emt 0:00:16]} Re8 {[%emt 0:01:20]} 19. Qf2 {[%emt 0:02:26]} b6 {[%emt 0:12:19] Weighted Error Value: White=0.09 (flawless) /Black=0.09 (flawless) .  Inaccurate:     	---       	Black=1      OK:         	White=4     	Black=4} 1/2-1/2

[Event "III Menorca Open-A 2024"]
[Site "Ciutadella Menorca"]
[Date "2024.04.03"]
[Round "3.13"]
[White "Tarhan, Adar"]
[Black "Adhiban, B.."]
[Result "1/2-1/2"]
[ECO "A01"]
[WhiteElo "2446"]
[BlackElo "2541"]
[Annotator "TA"]
[PlyCount "36"]
[EventDate "2024.04.02"]
[EventType "swiss"]
[EventCountry "ESP"]
[SourceTitle "playchess.com"]
[Source "ChessBase"]
[SourceQuality "1"]
[TimeControl "5400+30"]

{[%evp 9,36,31,45,45,55,51,38,-23,-7,-15,40,-68,-60,-64,-60,-80,-77,-52,-70,-60,-80,-81,-74,-68,-71,-38,15,11,6]} 1. b3 {[%emt 0:02:51]} e5 {[%emt 0:00:22]} 2. Bb2 {[%emt 0:00:04]} Nc6 {[%emt 0:00:04]} 3. e3 {[%emt 0:00:06]} d5 {[%emt 0:00:03]} 4. Bb5 {[%emt 0:00:13]} Nge7 {[%emt 0:00:02]} 5. Bxe5 {[%emt 0:02:24]} a6 {[%emt 0:00:04]} 6. Bxc6+ {[%emt 0:00:03]} Nxc6 {[%emt 0:00:03]} 7. Bb2 {[%emt 0:00:35]} Qg5 {[%emt 0:00:05]} 8. Qf3 {[%emt 0:03:14]} (8. Kf1 $1 $14) 8... Qg6 {[%emt 0:31:53]} 9. d3 {[%emt 0:02:38][%cal Ob1c3]} Bb4+ {[%emt 0:16:27]} ({Black should play} 9... Nb4 $11 10. Kd2 Bd6) 10. Nd2 {[%emt 0:05:06]} (10. Nc3 $14) 10... Bg4 $1 $15 {[%emt 0:00:29]} 11. Qxd5 {[%emt 0:03:56] [#] Threatens to win with h4.} Rd8 {[%emt 0:04:41]} 12. Qc4 {[%emt 0:00:03]} Be6 {[%emt 0:10:53] This pair of bishops is nice.} 13. Qf4 {[%emt 0:00:03] And now 0-0-0 would win.} Qxg2 {[%emt 0:05:00]} 14. Qf3 {[%emt 0:00:04]} Bd5 $1 {[%emt 0:08:17]} 15. e4 {[%emt 0:00:03] [#]} Bxe4 $1 {[%emt 0:00:16]} 16. dxe4 {[%emt 0:00:03]} Bxd2+ {[%emt 0:01:22]} 17. Ke2 {[%emt 0:00:04]} Qxf3+ {[%emt 0:01:33]} ({Better is} 17... Qg5 $15 18. Kf1 O-O) 18. Nxf3 $11 {[%emt 0:00:10]} Bh6 {[%emt 0:00:11] Weighted Error Value: White=0.25 (precise) /Black=0.14 (very precise) .  Mistake:       	White=2     	Black=2      OK:         	White=4     	Black=1      Best:        	White=3     	Black=5      Strong:       	---       	Black=2      Brilliant:      	---       	Black=1} 1/2-1/2

[Event "III Menorca Open-A 2024"]
[Site "Ciutadella Menorca"]
[Date "2024.04.03"]
[Round "3.14"]
[White "Gorshtein, Ido"]
[Black "Ghazarian, Kirk"]
[Result "1-0"]
[ECO "A20"]
[WhiteElo "2540"]
[BlackElo "2454"]
[Annotator "TA"]
[PlyCount "127"]
[EventDate "2024.04.02"]
[EventType "swiss"]
[EventCountry "ESP"]
[SourceTitle "playchess.com"]
[Source "ChessBase"]
[SourceQuality "1"]
[TimeControl "5400+30"]

{[%evp 9,127,-2,6,8,9,10,0,0,0,0,0,0,0,0,44,52,45,37,45,18,18,22,19,19,32,22,37,48,48,43,43,38,50,31,54,50,65,62,68,48,90,67,67,52,49,51,169,164,215,209,217,202,201,147,192,192,251,266,267,254,317,308,376,375,414,426,421,383,373,155,143,164,152,164,227,212,295,223,318,130,123,53,58,11,25,20,171,178,175,167,259,253,329,322,346,447,436,436,413,460,460,460,457,345,337,330,29941,5539,29979,2211,29980,29978,29978,29979,29979,29980,29981,29981,29970,12790]} 1. c4 {[%emt 0:01:22]} e5 {[%emt 0:00:05]} 2. g3 {[%emt 0:00:24]} Nf6 {[%emt 0:00:36]} 3. Bg2 {[%emt 0:00:05]} Bc5 {[%emt 0:00:59]} 4. d3 {[%emt 0:01:05]} O-O {[%emt 0:00:38]} 5. Nf3 {[%emt 0:00:07]} d6 {[%emt 0:00:24]} 6. O-O {[%emt 0:00:10]} c6 {[%emt 0:00:29]} 7. d4 {[%emt 0:02:04]} exd4 {[%emt 1:30:49]} 8. Nxd4 {[%emt 0:00:06] The position is equal.} a5 {[%emt 0:00:00][%cal Ba7a5,Ba5a4,Ba4a3][%mdl 32]} 9. Nc3 {[%emt 0:00:19]} a4 {[%emt 0:00:00]} 10. e3 {[%emt 0:06:04]} a3 {[%emt 0:00:00]} 11. b3 {[%emt 0:00:22]} d5 {[%emt 0:00:00]} 12. cxd5 {[%emt 0:02:08]} Nxd5 {[%emt 0:00:00]} 13. Nxd5 {[%emt 0:00:46]} cxd5 {[%emt 0:00:00]} 14. Bd2 {[%emt 0:04:18]} Bxd4 $1 {[%emt 0:00:00]} 15. exd4 {[%emt 0:00:03]} Nc6 {[%emt 0:00:00]} 16. Rc1 {[%emt 0:00:48]} Be6 {[%emt 0:00:00][%cal Od8d7]} 17. Be3 {[%emt 0:02:05]} Bf5 {[%emt 0:00:00]} 18. Qd2 {[%emt 0:04:01]} Re8 {[%emt 0:00:00]} 19. Rc5 {[%emt 0:01:36]} Be4 {[%emt 0:00:00]} 20. f3 {[%emt 0:00:31]} Bg6 {[%emt 0:00:00]} 21. Bf2 {[%emt 0:00:10]} Qd7 {[%emt 0:00:00]} 22. Rfc1 {[%emt 0:00:38]} h6 {[%emt 0:00:00]} 23. Bf1 {[%emt 0:03:14]} Rec8 {[%emt 0:00:00]} 24. b4 {[%emt 0:04:07]} Rd8 {[%emt 0:00:00]} 25. h3 {[%emt 0:04:06][%cal Bh2h3,Bh3h4,Bh4h5][%mdl 32]} Qd6 {[%emt 0:00:00]} 26. Kg2 {[%emt 0:02:51]} Ra4 {[%emt 0:00:00]} 27. Rb5 {[%emt 0:09:40]} Nxb4 {[%emt 0:00:00]} (27... Rxb4 $2 28. Rxc6 bxc6 29. Rxb4 $18) (27... Qe7 $14) 28. Rxb7 $18 {[%emt 0:00:48]} Nc2 {[%emt 0:00:00]} (28... Rb8 $142 29. Rb5 Raa8) 29. h4 {[%emt 0:06:40]} Rb4 {[%emt 0:00:00]} 30. Rxb4 {[%emt 0:00:29]} Nxb4 {[%emt 0:00:00]} 31. Rc5 {[%emt 0:02:31]} Rb8 {[%emt 0:00:22] [#]} 32. Qc3 $1 {[%emt 0:06:52]} Nc2 {[%emt 0:04:37] [#]} (32... Qf8 $142 33. Qxa3 Qe8) 33. h5 $1 {[%emt 0:01:52][%mdl 512]} Bh7 {[%emt 0:00:06]} 34. g4 {[%emt 0:01:17]} Qf8 {[%emt 0:01:27]} 35. Bb5 {[%emt 0:03:07][%cal Of2g3,Bf1b5,Bb5c6,Bc6d5][%mdl 32]} Kh8 {[%emt 0:02:02]} 36. Bg3 {[%emt 0:01:47]} (36. Rxd5 Qb4 37. Qc7 Rf8 $16) 36... Ra8 {[%emt 0:01:58]} 37. Bc6 {[%emt 0:01:51]} (37. Rxd5 Qb4 38. Qxb4 Nxb4 $14) 37... Rc8 {[%emt 0:00:40]} 38. Bxd5 {[%emt 0:02:51]} (38. Rxd5 $2 Qb4 39. Qxb4 Nxb4 $19) 38... Rd8 {[%emt 0:01:59]} 39. Bf2 {[%emt 0:00:10] A strong pair of Bishops.} (39. Bc7 $18 {has better winning chances.} Re8 40. Be4 Bxe4 41. fxe4 Rxe4 42. Qxc2 Rxd4 43. Bf4) 39... Nb4 $16 {[%emt 0:01:56]} 40. Qxb4 {[%emt 0:06:02]} Rxd5 {[%emt 0:00:03]} 41. Qxa3 {[%emt 0:00:38]} Rd8 {[%emt 0:00:17]} (41... f5 $142) 42. Qe3 $18 {[%emt 0:01:09]} Ra8 {[%emt 0:00:52]} 43. a3 {[%emt 0:00:20]} f5 {[%emt 0:00:19]} (43... f6 $142 44. d5 Bg8) 44. gxf5 {[%emt 0:02:31]} (44. Bg3 $18 {is more deadly.}) 44... Bxf5 $16 {[%emt 0:00:07]} 45. Qe5 {[%emt 0:01:11]} (45. Bg3 $16) 45... Bd7 $1 $14 {[%emt 0:00:46]} 46. Rc7 {[%emt 0:01:05]} (46. Be3 $14 {is superior.}) 46... Rxa3 {[%emt 0:01:03]} 47. Be3 $36 {[%emt 0:01:20][%mdl 2048] White is more active. Active counter play!} (47. Rxd7 $2 Qxf3+ (47... Rxf3 $2 48. Bh4 $18) 48. Kg1 Qg4+ 49. Kf1 Ra1+ (49... Qxd7 $2 50. Qb8+ Kh7 51. Qb1+ Kg8 52. Qb8+ Kf7 53. Qb2 $19) 50. Be1 Qxd7 $19) 47... Qf5 {[%emt 0:00:53] Black cannot hold the game after this.} (47... Qf7 $1 $11 {and Black stays safe.}) 48. Qxf5 $18 {[%emt 0:00:21]} (48. Bxh6 Qxf3+ (48... Rxf3 49. Qxg7#) 49. Kg1 Qd1+ 50. Kg2 Ra2+) 48... Bxf5 {[%emt 0:00:02][%mdl 4096] Endgame. KRB-KRB} 49. Bf4 {[%emt 0:00:16]} Ra2+ {[%emt 0:00:55]} (49... Kg8 $142 50. Be5 Rd3 51. Rxg7+ Kf8) 50. Kg3 {[%emt 0:00:16]} Ra1 {[%emt 0:00:26]} 51. Be5 {[%emt 0:00:43]} Rg1+ {[%emt 0:00:19]} 52. Kf2 {[%emt 0:01:04]} Rg5 {[%emt 0:00:20]} 53. f4 {[%emt 0:02:13]} Rg4 {[%emt 0:00:00]} 54. d5 {[%emt 0:00:20][%cal Bd4d5,Bd5d6][%mdl 32] Wards off Be6. d6 would now be deadly.} Kg8 {[%emt 0:00:29]} 55. d6 {[%emt 0:00:09] White wants to mate with d7.} Kf8 {[%emt 0:00:30]} 56. Ra7 {[%emt 0:00:55]} Ke8 {[%emt 0:01:27]} 57. Kf3 {[%emt 0:03:26] Strongly threatening d7+.} (57. Rxg7 Rxg7 58. Bxg7 Kd7 $11) 57... g6 $2 {[%emt 0:00:33]} (57... Rg1 $18 58. Bxg7 (58. Rxg7 Rxg7 59. Bxg7 Kd7 $16) 58... Rf1+ 59. Ke3 Rd1 60. Re7+ (60. Bxh6 Rxd6 61. Ra8+ Rd8 $16) 60... Kd8 61. Bxh6 Rd3+ (61... Re1+ $2 62. Kd4 $18) 62. Ke2 Rxd6) 58. Re7+ {[%emt 0:00:19]} (58. d7+ $142 Bxd7 59. Rxd7 gxh5 60. Rg7 Rh4 61. Rh7 Kf8 62. f5 (62. Rxh6 Rh1 $18) 62... Rh1 63. Ke4 (63. Rxh6 h4 $18)) 58... Kf8 {[%emt 0:00:30]} 59. Bg7+ {[%emt 0:01:01]} Kg8 {[%emt 0:00:05]} 60. d7 {[%emt 0:00:10] White mates.} Bxd7 {[%emt 0:00:43]} 61. Rxd7 {[%emt 0:00:03]} gxh5 {[%emt 0:00:14]} 62. Bxh6 {[%emt 0:00:12]} Rg1 {[%emt 0:00:07]} 63. Bg5 {[%emt 0:00:11]} Re1 {[%emt 0:00:24]} 64. Rd6 {[%emt 0:00:14] Weighted Error Value: White=0.19 (very precise) /Black=0.41.  Missed win:     	White=2     	---        Mistake:       	White=3     	Black=8      Inaccurate:     	White=1     	Black=6      OK:         	White=25    	Black=17     Best:        	White=5     	Black=3      Strong:       	White=1     	Black=2} (64. Re7 $142 Ra1 65. Ke4 h4 66. Kf5 (66. Bxh4 Ra5 $18) 66... h3 67. Kg6 Kf8 68. Rh7 Ke8 69. f5 (69. Rxh3 Ra6+ 70. Kg7 Ra5 $18)) 1-0

[Event "III Menorca Open-A 2024"]
[Site "Ciutadella Menorca"]
[Date "2024.04.03"]
[Round "3.15"]
[White "Malek, Jan"]
[Black "Stremavicius, Titas"]
[Result "1/2-1/2"]
[ECO "B45"]
[WhiteElo "2441"]
[BlackElo "2540"]
[Annotator "TA"]
[PlyCount "81"]
[EventDate "2024.04.02"]
[EventType "swiss"]
[EventCountry "ESP"]
[SourceTitle "playchess.com"]
[Source "ChessBase"]
[SourceQuality "1"]
[TimeControl "5400+30"]

{[%evp 14,81,31,21,37,27,35,34,31,29,22,29,30,30,61,54,56,45,44,47,48,46,52,46,57,39,43,24,24,13,21,6,5,0,4,0,4,7,1,13,12,0,0,0,0,0,0,0,0,0,0,0,0,0,0,0,0,0,0,0,0,0,0,0,0,0,0,0,0,0]} 1. e4 {[%emt 0:00:41]} c5 {[%emt 0:00:33]} 2. Nf3 {[%emt 0:00:05]} e6 {[%emt 0:00:16]} 3. d4 {[%emt 0:00:11]} cxd4 {[%emt 0:00:05]} 4. Nxd4 {[%emt 0:00:03]} Nf6 {[%emt 0:00:13]} 5. Nc3 {[%emt 0:00:10]} Nc6 {[%emt 0:00:09]} 6. Nxc6 {[%emt 0:00:04]} bxc6 {[%emt 0:00:09]} 7. e5 {[%emt 0:00:03]} Nd5 {[%emt 0:00:11]} 8. Ne4 {[%emt 0:00:05]} c5 {[%emt 0:09:32]} 9. Be2 {[%emt 0:04:22]} Bb7 {[%emt 0:00:32]} 10. O-O {[%emt 0:00:54]} Qc7 {[%emt 0:02:52] [#] White is slightly better.} 11. Nd6+ $1 {[%emt 0:00:18]} Bxd6 {[%emt 0:00:07]} 12. exd6 {[%emt 0:00:06]} Qc6 {[%emt 0:00:07][%cal Oe8g8]} (12... Qxd6 $2 13. c4 $18) 13. f3 {[%emt 0:03:13]} e5 {[%emt 0:03:42][%cal Oc5c4]} (13... Qxd6 $2 {perishes.} 14. c4 $18) 14. c4 {[%emt 0:05:05]} Nf4 {[%emt 0:01:18]} 15. Bxf4 {[%emt 0:00:21]} exf4 {[%emt 0:00:05]} 16. Qd2 {[%emt 0:00:41]} O-O $1 {[%emt 0:01:19]} 17. Qxf4 {[%emt 0:02:30]} Rae8 {[%emt 0:01:54]} 18. Bd3 {[%emt 0:01:06] Rae1 is the strong threat.} Re6 {[%emt 0:11:29]} 19. Rfd1 {[%emt 0:00:23]} g6 {[%emt 0:05:39] Wards off Bf5} 20. Bf1 {[%emt 0:04:54]} Qb6 {[%emt 0:07:47]} 21. h4 {[%emt 0:00:56]} h5 {[%emt 0:01:05] The position is equal.} 22. Rd2 {[%emt 0:03:44]} Rfe8 {[%emt 0:00:52]} 23. Kf2 {[%emt 0:02:22]} Kg7 {[%emt 0:02:48]} 24. Kg1 {[%emt 0:09:34]} (24. b3 {keeps more tension.} Rf6 25. Qg5 Rxd6 26. Rad1) 24... Rf6 {[%emt 0:07:46]} 25. Qg3 {[%emt 0:00:06]} Ree6 {[%emt 0:01:11]} 26. Rad1 {[%emt 0:01:00]} a5 {[%emt 0:02:18]} 27. Bd3 {[%emt 0:06:23]} Qxd6 {[%emt 0:05:35]} 28. Qxd6 {[%emt 0:00:13]} Rxd6 {[%emt 0:00:02]} 29. Bf1 {[%emt 0:03:55]} Rxd2 {[%emt 0:07:05]} 30. Rxd2 $11 {[%emt 0:00:01][%mdl 4096] Endgame. KRB-KRB} Bc6 {[%emt 0:00:12]} 31. Kf2 {[%emt 0:01:27]} Re6 {[%emt 0:00:09]} 32. g3 {[%emt 0:03:00]} Kf8 {[%emt 0:01:48]} 33. Bh3 {[%emt 0:01:30]} Re8 {[%emt 0:00:12]} 34. f4 {[%emt 0:00:27]} (34. Bxd7 $2 {too greedy.} Rd8 35. Rd6 Bxd7 $19 (35... Rxd7 36. Rxc6 Rd2+ 37. Ke3 $11)) 34... f5 {[%emt 0:02:47]} 35. Bf1 {[%emt 0:03:30]} Rb8 {[%emt 0:00:30]} 36. Be2 {[%emt 0:00:31]} Ke7 {[%emt 0:00:40]} 37. Ke3 {[%emt 0:00:07]} Re8 {[%emt 0:00:17]} 38. Rd3 {[%emt 0:01:08]} Rb8 {[%emt 0:00:10]} 39. Rd2 {[%emt 0:00:25]} Re8 {[%emt 0:00:06]} 40. Rc2 {[%emt 0:01:32]} Be4 {[%emt 0:00:45]} 41. Rd2 {[%emt 0:03:21] Weighted Error Value: White=0.04 (flawless) /Black=0.02 (flawless) .  Inaccurate:     	---       	Black=1      OK:         	White=7     	Black=21     Best:        	White=2     	Black=1      Strong:       	---       	Black=1} 1/2-1/2

[Event "III Menorca Open-A 2024"]
[Site "Ciutadella Menorca"]
[Date "2024.04.03"]
[Round "3.16"]
[White "Vogel, Roven"]
[Black "Audi Ameya"]
[Result "1/2-1/2"]
[ECO "D90"]
[WhiteElo "2528"]
[BlackElo "2387"]
[Annotator "TA"]
[PlyCount "136"]
[EventDate "2024.04.02"]
[EventType "swiss"]
[EventCountry "ESP"]
[SourceTitle "playchess.com"]
[Source "ChessBase"]
[SourceQuality "1"]
[TimeControl "5400+30"]

{[%evp 42,136,-239,-216,-202,-208,-222,-235,-123,-227,0,-177,-79,-135,-28,-35,-41,-35,-37,-40,-21,-21,-21,-21,-21,-21,-21,-21,0,-21,-21,-21,-21,-21,-21,-21,-21,-21,-21,-21,-21,-21,-21,-21,-8,-14,-8,-21,-8,-8,-8,-8,0,0,0,0,0,-8,-8,-8,-8,-101,-101,-101,-101,-101,-101,-101,-101,-101,-70,-101,-101,-151,-70,-70,-70,-70,-70,-70,-70,-70,-70,-70,-70,-70,-70,-70,-70,-70,-70,-70,-70,-70,-70,-77,-85]} 1. d4 {[%emt 0:00:04]} Nf6 {[%emt 0:00:04]} 2. c4 {[%emt 0:00:08]} g6 {[%emt 0:00:05]} 3. Nc3 {[%emt 0:00:05]} d5 {[%emt 0:00:03]} 4. Nf3 {[%emt 0:02:07]} Bg7 {[%emt 0:00:05]} 5. g3 {[%emt 0:00:06]} dxc4 {[%emt 0:01:08]} 6. Bg2 {[%emt 0:00:45] D90: Grünfeld: 4 Nf3 Bg7 sidelines.} Nbd7 {[%emt 0:08:06]} 7. Qa4 {[%emt 0:03:11]} a6 {[%emt 0:09:15]} 8. Qxc4 {[%emt 0:03:20]} O-O {[%emt 0:10:03]} 9. Ne5 {[%emt 0:08:54]} Ne8 $146 {[%emt 0:12:44]} ({Predecessor:} 9... Nxe5 10. dxe5 Be6 11. Qd3 Nd7 12. Bxb7 Ra7 13. Bg2 Bxe5 14. Be3 Nb6 15. a4 Qxd3 16. exd3 Bxc3+ 17. bxc3 {½-½ Mikhaletz,L (2316)-Peng,L (2498) Warsaw Szansa Blitz op 2021 (3)}) 10. Nxd7 {[%emt 0:05:06]} Qxd7 {[%emt 0:00:18]} 11. d5 {[%emt 0:01:19]} Nd6 {[%emt 0:04:43]} 12. Qd3 {[%emt 0:03:59]} Nb5 {[%emt 0:07:09]} 13. Nd1 {[%emt 0:20:12]} e6 {[%emt 0:03:57]} 14. a4 {[%emt 0:00:18]} Nd4 {[%emt 0:01:08]} 15. Be3 {[%emt 0:02:56]} Nf5 {[%emt 0:03:13]} 16. Bf4 {[%emt 0:09:14]} exd5 {[%emt 0:00:35]} 17. Qxd5 {[%emt 0:04:35]} Qxd5 {[%emt 0:06:09]} 18. Bxd5 {[%emt 0:00:02]} Nd4 {[%emt 0:00:14]} 19. Rc1 {[%emt 0:01:50]} Re8 {[%emt 0:01:13]} 20. Rxc7 {[%emt 0:10:49]} Rxe2+ {[%emt 0:00:16]} 21. Kf1 {[%emt 0:00:01]} Bh3+ {[%emt 0:00:09]} 22. Bg2 {[%emt 0:00:05]} Re1+ $1 {[%emt 0:00:18]} 23. Kxe1 {[%emt 0:00:02]} Bxg2 {[%emt 0:00:03]} 24. Rf1 {[%emt 0:00:10]} Nf3+ {[%emt 0:05:46]} 25. Ke2 {[%emt 0:00:02]} Nd4+ {[%emt 0:00:04]} 26. Ke1 {[%emt 0:00:08] [#]} Ne6 {[%emt 0:00:33]} (26... Rd8 $1 $19 {and Black stays clearly on top. Hoping for ...g5.} 27. h4 Nf3+ 28. Ke2 Nh2 (28... Bxf1+ 29. Kxf1 b5 30. axb5 $11)) 27. Rc2 {[%emt 0:03:52]} (27. Rg1 $142 Re8 28. Rxg2 Nxc7+ 29. Kf1) 27... Nxf4 {[%emt 0:02:05]} ({Don't play} 27... Nd4 28. Rc1 $17) (27... Rd8 $17 28. Ne3 Bc6 (28... Bxf1 29. Kxf1 h5 30. Bc7 $15) 29. Rxc6 bxc6) 28. gxf4 $11 {[%emt 0:00:02]} Bxf1 {[%emt 0:01:45]} 29. Kxf1 {[%emt 0:00:02]} Rd8 {[%emt 0:00:10]} 30. Ne3 {[%emt 0:00:31]} f5 {[%emt 0:08:00]} 31. Rc7 {[%emt 0:01:12]} b5 {[%emt 0:01:55]} 32. axb5 {[%emt 0:01:18]} axb5 {[%emt 0:00:03]} 33. Rb7 {[%emt 0:00:09]} Bxb2 {[%emt 0:00:34]} 34. Rxb5 {[%emt 0:00:02]} Bd4 {[%emt 0:01:31]} 35. Rd5 {[%emt 0:02:54]} Rxd5 {[%emt 0:00:05]} 36. Nxd5 {[%emt 0:00:04]} Kf7 {[%emt 0:00:06]} 37. Kg2 {[%emt 0:00:10]} Ke6 {[%emt 0:00:15]} 38. Nb4 {[%emt 0:00:02]} Bc3 {[%emt 0:00:41]} 39. Nd3 {[%emt 0:00:15]} Kd5 {[%emt 0:01:14]} 40. Kf3 {[%emt 0:00:02]} Bd4 {[%emt 0:01:02]} 41. Nc1 {[%emt 0:00:17]} Kc4 {[%emt 0:00:16]} 42. Ne2 {[%emt 0:00:06]} Kd3 {[%emt 0:00:31]} 43. Ng1 {[%emt 0:00:44]} Bb6 {[%emt 0:03:04]} 44. Kg3 {[%emt 0:02:17]} Kd2 {[%emt 0:01:44]} 45. Kg2 {[%emt 0:03:09]} Bc7 {[%emt 0:00:14]} 46. Nf3+ {[%emt 0:00:56]} Ke2 {[%emt 0:00:49]} 47. Nd4+ {[%emt 0:01:50]} Kd3 {[%emt 0:00:13]} 48. Ne6 {[%emt 0:00:24]} Bd6 {[%emt 0:00:12]} 49. Ng5 {[%emt 0:05:25]} h6 {[%emt 0:01:28]} 50. Nf7 $1 {[%emt 0:00:58]} Bxf4 {[%emt 0:00:04]} 51. Kf3 {[%emt 0:00:03]} (51. Nh8 $1 $11) 51... Bxh2 $17 {[%emt 0:00:22]} 52. Nxh6 {[%emt 0:00:06]} Kd4 {[%emt 0:01:36]} 53. Nf7 {[%emt 0:00:08]} Kd5 {[%emt 0:01:18]} 54. Ng5 {[%emt 0:00:31]} Bd6 {[%emt 0:00:18]} 55. Nh3 {[%emt 0:00:21]} Ke5 {[%emt 0:01:32]} 56. Kg2 {[%emt 0:01:40]} Bc5 {[%emt 0:00:22]} 57. Ng5 {[%emt 0:01:27] [#]} (57. Kf3 $142) 57... Kf6 {[%emt 0:00:04]} ({Better is} 57... Be7 $1 $17 {[%cal Re7g5]} 58. Nf3+ Ke4 59. Nd2+ Kf4) 58. f4 $15 {[%emt 0:00:59]} Ke7 {[%emt 0:01:05]} 59. Kf3 {[%emt 0:00:08]} Bd4 {[%emt 0:00:08]} 60. Nh3 {[%emt 0:00:20]} Kd6 {[%emt 0:00:23]} 61. Ng5 {[%emt 0:00:30]} Bf6 {[%emt 0:00:05]} 62. Nh3 $1 {[%emt 0:00:04]} Kd5 {[%emt 0:00:03]} 63. Ng1 {[%emt 0:00:32]} Kd4 {[%emt 0:00:19]} 64. Ne2+ {[%emt 0:00:05]} Kd3 {[%emt 0:00:05]} 65. Ng3 {[%emt 0:01:05]} Bd4 {[%emt 0:00:43]} 66. Ne2 {[%emt 0:00:54]} Be3 {[%emt 0:00:07]} 67. Ng3 {[%emt 0:00:12]} Bg1 {[%emt 0:00:56]} 68. Nf1 {[%emt 0:00:23]} Bc5 {[%emt 0:01:17]} 1/2-1/2